Cogmind - Beta 16 @@@ ROGUE MODE // 2025.12.27 @ 14:24:31 Player: CloudSeaKing Result: Destroyed by QG-KOG(R) with Subdweller Laser Performance ------------- Evolutions (0) 0 Regions Visited (2) 400 Robots Destroyed (22) 110 Value Destroyed (487) 487 Prototype IDs (0) 0 Alien Tech Used (0) 0 Bonus (0) 0 TOTAL SCORE: 997 Bonus ------- None Cogmind --------- Core Integrity 0/250 Matter 259/300 Energy 84/100 System Corruption 0% Temperature Cool (6) Movement Core (100) Ox1 Location -10/Subcaves Parts ------- > --- POWER (1) -------- (None) > --- PROPULSION (2) --- (None) > --- UTILITY (2) ------ Seismic Detector > --- WEAPON (2) ------- Heavy Assault Rifle > --- INVENTORY (5) ---- Huge Storage Unit Structural Scanner Light EM Pulse Cannon Assault Rifle Subdweller Machine Gun Peak State ------------ > --- POWER ------------ Subdweller Power Source > --- PROPULSION ------- Light Treads Light Treads > --- UTILITY ---------- Large Storage Unit Makeshift System Restoration Module > --- WEAPON ----------- Light Assault Rifle Light Assault Rifle > --- INVENTORY -------- Ion Engine Light Ion Engine Huge Storage Unit High-capacity Matter Pod Structural Scanner Improved Terrain Scanner Improved Targeting Computer Light Armor Plating Hacking Suite Riot Gun Light EM Pulse Cannon Assault Rifle Light Assault Rifle Subdweller Machine Gun Battle Cannon [Rating: 13] Favorites ----------- Power Ion Engine Engine Ion Engine Propulsion Light Treads Treads Light Treads Leg Aluminum Leg Utility Seismic Detector Device Seismic Detector Storage Large Storage Unit Weapon Light Assault Rifle Energy Gun Small Laser Energy Cannon Light EM Pulse Cannon Ballistic Gun Light Assault Rifle Build | -11 -10 -10 ------- Run | Yrd Mat Sub Slots Evolved . | . . . Power . | . . . Propulsion . | . . . Utility . | . . . Weapon . | . . . Parts Attached 25 | 10 10 5 Power 4 | 1 1 2 Engine 4 | 1 1 2 Core . | . . . Reactor . | . . . Propulsion 6 | 4 2 . Treads 4 | 2 2 . Leg 2 | 2 . . Wheel . | . . . Hover . | . . . Flight . | . . . Utility 6 | 2 3 1 Device 2 | 1 . 1 Storage 4 | 1 3 . Processor . | . . . Hackware . | . . . Protection . | . . . Artifact . | . . . Weapon 9 | 3 4 2 Energy Gun 4 | 3 . 1 Energy Cannon 1 | . 1 . Ballistic Gun 4 | . 3 1 Ballistic Cannon . | . . . Launcher . | . . . Special Weapon . | . . . Impact Weapon . | . . . Slashing Weapon . | . . . Piercing Weapon . | . . . Special Melee Weapon . | . . . Unidentified Prototypes . | . . . Parts Lost 13 | . 4 9 Power 3 | . 1 2 Propulsion 3 | . . 3 Utility 1 | . . 1 Weapon 6 | . 3 3 Highest Loss Streak 7 | . 2 7 To Critical Strikes . | . . . Average Backups 11 | 4 11 14 Power 1 | . 1 1 Propulsion 1 | 2 1 . Utility 6 | . 6 7 Weapon 3 | . 2 5 Tool/Special . | . . . Unused Backups 21 | . 7 14 Power 2 | . 2 . Propulsion 2 | . 2 . Utility 11 | . 3 8 Weapon 6 | . . 6 Tool/Special . | . . . Average Slot Usage (%) 98 | . 99 96 Engine 13 | . 13 13 Treads 27 | . 28 26 Device 13 | . 14 12 Storage 13 | . 14 13 Energy Gun 13 | . 21 . Ballistic Gun 13 | . 6 27 Peak Build Rating 13 | 8 9 13 Average Rating 8 | 5 8 9 On Entrance 5 | . 8 9 Avg Prop Armor Cover (%) . | . . . Naked Turns . | . . . Heaviest Build 32 | 13 29 32 Greatest Support 40 | 40 40 40 Greatest Overweight (x) 4 | 4 . . Average Overweight (x) . | . . . Largest Inventory Capacity 25 | 8 25 15 Average Capacity 12 | 7 11 14 Most Carried 16 | 8 16 15 Average Carried 11 | 4 11 14 Final Capacity 15 | 8 15 5 Final Carried 15 | 8 15 5 Class Distribution -------------------- 54% | Mutant 45% | Scavenger-Mutant Dominant Class ---------------- Mutant | -10/Materials Scavenger-Mutant | -10/Subcaves Resources | -11 -10 -10 ----------- Run | Yrd Mat Sub Matter Collected 837 | 271 320 246 Remotely . | . . . Salvage Created 751 | 44 578 129 Parts 45 | 6 32 7 Haulers Intercepted 2 | . 2 . Recyclers Shooed 2 | . 2 . Parts Field Recycled . | . . . Retrieved Matter . | . . . Parts Self-Destructed 6 | . . 6 Prevented . | . . . Parts Restored . | . . . Kills | -11 -10 -10 ------- Run | Yrd Mat Sub Combat Hostiles Destroyed 13 | . 10 3 Guns 12 | . 9 3 Cannons 1 | . 1 . Classes Destroyed 10 | 1 7 2 Builder 1 | . 1 . Tunneler 2 | 2 . . Hauler 2 | . 2 . Recycler 1 | . 1 . Operator 2 | . 2 . Watcher 1 | . 1 . Swarmer 3 | . 3 . Grunt 8 | . 7 1 Sentry 1 | . . 1 Subdweller 1 | . . 1 Best Kill Streak 4 | 2 4 2 Combat Bots Only 3 | . 3 2 Max Kills in Single Turn 1 | 1 1 1 Gunslinging . | . . . Exploded . | . . . Melee . | . . . Uniques/NPCs Destroyed . | . . . Combat | -11 -10 -10 -------- Run | Yrd Mat Sub Hostile Shots Fired 145 | . 98 47 Missed 29 | . 22 7 Hits 116 | . 76 40 Projectile 116 | . 76 40 Critical Strikes 4 | . 2 2 Damage Taken 1551 | . 747 804 Core 270 | . 141 129 Absorbed by Shields . | . . . Core Remaining (%) 100 | 100 . . Volleys Fired 96 | 2 60 34 Largest 2 | 2 2 2 Hottest 96 | 80 96 70 Shots Fired 185 | 4 120 61 Gun 177 | 4 112 61 Cannon 8 | . 8 . Launcher . | . . . Special . | . . . Kinetic 96 | . 38 58 Thermal 60 | 4 56 . Explosive . | . . . Electromagnetic 29 | . 26 3 Robot Hit Streak 22 | 3 22 18 Robot Miss Streak 5 | . 5 2 Penetration Max . | . . . Secondary Targets 3 | . 3 . Max Gunslinging Chain 1 | . 1 . Shots Hit Robots 130 | 3 76 51 Core Hits 40 | 2 31 7 Critical Kills . | . . . Critical Parts Destroyed . | . . . Critical Strikes . | . . . Melee Attacks . | . . . Impact . | . . . Slashing . | . . . Piercing . | . . . Sneak Attacks . | . . . Combat Hostiles . | . . . Follow-up Attacks . | . . . Damage Inflicted 1043 | 33 881 129 Guns 954 | 33 792 129 Cannons 88 | . 88 . Explosions . | . . . Melee . | . . . Ramming 1 | . 1 . Kinetic 324 | . 195 129 Thermal 477 | 33 444 . Explosive . | . . . Electromagnetic 241 | . 241 . Impact . | . . . Slashing . | . . . Piercing . | . . . Highest Corruption 3 | . 3 3 Average Corruption 2 | . 2 2 Corruption Purged 3 | . . 3 Corruption Blocked . | . . . Effects 18 | . 15 3 Message Errors 5 | . 4 1 Matter Fused 5 | . 4 1 Heat Flow Errors 2 | . 2 . Energy Discharges 3 | . 3 . Data Loss (minor) 1 | . 1 . Data Loss (major) 1 | . 1 . Alerts 1 | . . 1 Overload Shots . | . . . Overflow Damage . | . . . Projectiles . | . . . Explosions . | . . . Melee . | . . . Knockbacks . | . . . Impact . | . . . Kinetic . | . . . Secondary . | . . . Self-Inflicted Damage . | . . . Shots . | . . . Rammed 3 | . 3 . Targets Rammed 3 | . 3 . Kicked . | . . . Crushed . | . . . Highest Temperature 438 | 18 188 438 Average Temperature 68 | 12 57 241 Received Heat Transfer 998 | . 258 740 Effects 1 | . . 1 Damage (minor) 1 | . . 1 Siege Activations . | . . . Martial Activations . | . . . Shielding Activations . | . . . Robots Disrupted . | . . . Combat Hostiles . | . . . Robots Corrupted . | . . . Combat Hostiles . | . . . Parts Fried 2 | . 2 . Impact Corruptions . | . . . Robots Melted . | . . . Combat Hostiles . | . . . Parts Melted 1 | . 1 . Heat Transferred 1050 | 75 975 . Parts Sabotaged . | . . . Parts Stolen . | . . . Parts Stripped . | . . . Power Chain Reactions . | . . . Alert | -11 -10 -10 ------- Run | Yrd Mat Sub Maximum Alert Level . | . . . Low Security (%) 100 | 100 100 . Level 1 . | . . . Level 2 . | . . . Level 3 . | . . . Level 4 . | . . . Level 5 . | . . . High Security . | . . . Max Security . | . . . Peak Influence 78 | 5 78 . Initial . | . . . Average 12 | . 14 . Influence Increases 382 | 10 332 40 Destroy 0b10 Robot/C 240 | . 200 40 Destroy 0b10 Robot/NC 45 | 10 35 . Destroy Leader 46 | . 46 . Successful Hack 21 | . 21 . Disable Machine 15 | . 15 . Lose Combat Pursuer 15 | . 15 . Influence Decreases 382 | 10 332 40 Time Decay 358 | 10 308 40 Lost Part 24 | . 24 . Squads Dispatched 4 | . 4 . Investigation 2 | . 2 . Extermination . | . . . Reinforcement 2 | . 2 . Assault . | . . . Garrison . | . . . Intercept . | . . . Searches Triggered . | . . . Construction Impeded . | . . . Haulers Reinforced . | . . . Active Scanning Responses . | . . . Cargo Convoy Interrupts . | . . . Stealth | -11 -10 -10 --------- Run | Yrd Mat Sub Distress Signals 5 | . 5 . Communications Jammed . | . . . Distress Signals . | . . . Times Spotted 32 | . 28 4 Peak Tracking Total 6 | . 6 2 Tactical Retreats 1 | . 1 . Traps | -11 -10 -10 ------- Run | Yrd Mat Sub Traps Triggered 3 | . 3 . Indirectly . | . . . Trap Hack Attempts . | . . . Triggered . | . . . Disarmed . | . . . Reprogrammed . | . . . Reused . | . . . Traps Extracted . | . . . Installed . | . . . Triggered . | . . . Machines | -11 -10 -10 ---------- Run | Yrd Mat Sub Machines Disabled 1 | . 1 . Max in Single Turn 1 | . 1 . Machines Repaired . | . . . Machines Dismantled . | . . . Machines Sabotaged . | . . . Overloaded Fab Kills . | . . . Hacking | -11 -10 -10 --------- Run | Yrd Mat Sub Machines Accessed 6 | . 6 . Terminals 5 | . 5 . Fabricators . | . . . Repair Stations . | . . . Recycling Units 1 | . 1 . Scanalyzers . | . . . Garrison Access . | . . . Total Hacks 19 | . 19 . Successful 9 | . 9 . Failed 10 | . 10 . Catastrophic 1 | . 1 . Database Lockouts . | . . . Manual 14 | . 14 . Terminals 16 | . 16 . Fabricators . | . . . Repair Stations . | . . . Recycling Units 3 | . 3 . Scanalyzers . | . . . Garrison Access . | . . . Terminal Hacks 4 | . 4 . Record 1 | . 1 . Robot Analysis 2 | . 2 . Hauler Manifests 1 | . 1 . Fabricator Hacks . | . . . Repair Station Hacks . | . . . Recycling Unit Hacks 2 | . 2 . Report Inventory 1 | . 1 . Retrieve Components 1 | . 1 . Scanalyzer . | . . . Garrison Access Hacks . | . . . Unauthorized Hacks 3 | . 3 . Terminals 3 | . 3 . Botnet 3 | . 3 . Fabricators . | . . . Repair Stations . | . . . Recycling Units . | . . . Scanalyzers . | . . . Garrison Access . | . . . Data Cores Recovered . | . . . Used . | . . . Hacking Detections 4 | . 4 . Full Trace Events . | . . . Feedback Events . | . . . Feedback Blocked . | . . . Robot Schematics Acquired . | . . . Robots Built . | . . . Authchips . | . . . Time . | . . . Total Robot Build Rating . | . . . Part Schematics Acquired . | . . . Parts Built . | . . . Authchips . | . . . Time . | . . . Total Part Build Rating . | . . . Part Studies Acquired . | . . . Parts Repaired . | . . . Time . | . . . Parts Recycled . | . . . Recycled Matter . | . . . Retrieved Matter . | . . . Retrieved Components 2 | . 2 . Parts Scanalyzed . | . . . Part Schematics Acquired . | . . . Parts Damaged . | . . . Bothacking | -11 -10 -10 ------------ Run | Yrd Mat Sub Used RIF Installer . | . . . Robots Hacked . | . . . Non-combat . | . . . Combat . | . . . Robot Hacks Applied . | . . . Relay Couplers Released . | . . . Fabnet Peak Effective % . | . . . Robots Rewired . | . . . Allies Hacked . | . . . Hacks Repelled . | . . . Allies | -11 -10 -10 -------- Run | Yrd Mat Sub Total Allies . | . . . Largest Group . | . . . Highest-Rated Group . | . . . Highest-Rated Ally . | . . . Total Orders . | . . . Ally Attacks . | . . . Total Damage . | . . . Kills . | . . . Allies Corrupted . | . . . Allies Melted . | . . . Intel | -11 -10 -10 ------- Run | Yrd Mat Sub Active Infowar (turns) 2247 | 61 1563 623 Seismic 2247 | 61 1563 623 Robot Analysis Total 2 | . 2 . Derelict Logs Recovered . | . . . Drone Launches . | . . . Drone Recoveries . | . . . Exploration | -11 -10 -10 ------------- Run | Yrd Mat Sub Turns Passed 2629 | 223 1563 843 Spaces Moved 1401 | 121 819 461 Core 19 | 19 . . Treads 1363 | 83 819 461 Legs 19 | 19 . . Wheels . | . . . Hover . | . . . Flight . | . . . Fastest Speed 50 | 50 160 160 Average Speed 160 | 161 160 160 Slowest Speed 250 | 250 160 160 Overloaded Moves . | . . . Propulsion Burnouts . | . . . Robots Hopped . | . . . Potential Cave-ins . | . . . Cave-ins Triggered . | . . . Exploration Rate (%) 38 | 7 92 16 Regions Visited 2 Branch Regions 1 Pre-discovered Areas . | . . . Known Exits Taken . | . . . Unknown Exits Taken 2 | 1 1 . Scrap Searched 3 | . . 3 Spaces Dug . | . . . Terrain Destroyed . | . . . Melee . | . . . Projectile . | . . . AOE . | . . . Terrain Rammed . | . . . Walls Destroyed . | . . . Machines Disabled . | . . . Actions | -11 -10 -10 --------- Run | Yrd Mat Sub Total 1621 | 140 964 517 Wait 36 | . 32 4 Move 1399 | 120 818 461 Hop . | . . . Pick Up 33 | 8 21 4 Fast Attach 11 | 7 2 2 Attach 8 | . 4 4 Detach . | . . . Swap 13 | 3 8 2 Drop 22 | . 16 6 Fire 96 | 2 60 34 Melee . | . . . Ram . | . . . Kick . | . . . Crush 3 | . 3 . Escape Stasis . | . . . Rewire . | . . . Trap . | . . . Miscellaneous . | . . . Route ------- -11/Scrapyard -10/Materials (discovered 4 exits: [*Mat x2] / [*Min] / [*Sub]) -10/Subcaves History --------- Turn | Location | Event 34 | -11/Scrapyard | Discovered new exit (range 16) 224 | -11/Scrapyard | Entered Materials 225 | -10/Materials | Met a group of wandering Federalists 303 | -10/Materials | Build established: Mutant 471 | -10/Materials | Discovered new exit (range 6) 891 | -10/Materials | Build established: Scavenger-Mutant 970 | -10/Materials | Discovered new exit (range 9) 1253 | -10/Materials | Build established: Mutant 1422 | -10/Materials | Discovered new exit (range 16) 1431 | -10/Materials | Core integrity fell below 50% 1783 | -10/Materials | Discovered new exit (range 4) 1787 | -10/Materials | Entered Subcaves 1833 | -10/Subcaves | Build established: Scavenger-Mutant 1923 | -10/Subcaves | Disturbed a concealed Subdweller 2623 | -10/Subcaves | Core integrity fell below 20% 2630 | -10/Subcaves | Destroyed by QG-KOG(R) with Subdweller Laser Last Messages --------------- 02432_ G-34 Mercenary destroyed. 02443_ Sml. Laser fries itself beyond repair. 02444_ Aluminum Leg fries itself beyond repair. 02447_ Y-45 Defender destroyed. 02451_ Acquired 89 matter. 02454_ Acquired Hvy. Assault Rifle. 02458_ Imp. Ion Engine fries itself beyond repair. 02459_ Dropped Broken Sub. Power Source. 02470_ Subatomizers dissect the Broken Sub. Power Source. 02586_ Lgt. Ion Engine destroyed. 02590_ Lgt. Treads destroyed. 02598_ Lgt. Assault Rifle destroyed. 02606_ Riot Gun destroyed. 02608_ Lgt. Treads destroyed. 02616_ Lgt. Assault Rifle destroyed. 02620_ Lrg. Storage Unit destroyed. 02624_ Subatomizers dissect the Imp. Terrain Scanner. Map ----- +----------------------------------------------------+ | ??????????????# #?????????????????? | | ??????????????## #?????????????????? | | ???????????????### ####??????????????? | | ?????????????????## #??????????????? | | ?????????????????## #??????????????? | | ?????????????????# #??????????????? | | ?????????????????# #??????????????? | | ?????????????????# ### #??????????????? | | ?????????????????# ### ##??????????????? | | ?????????????????# ## #???????????????? | | ?????????????????#### #???????????????? | | ???????????????????# #???????????????? | | ???????????????????# #???????????????? | | ???????????????????## ##???????????????? | | ????????????????????## ####??????????????? | | ?????????????????????# ## ##?????????????? | | ?????????????????????# #?????????????? | | ??????????????????#### #?????????????? | | ??????????????????# ##?????????????? | | ?????????????????## ###??????????????? | | ?????????????????# ##????????????????? | | ?????????????#####< ##?????????????????? | | ?????????????# # ##??????????????????? | | ?????????????# ##???????????????????? | | ?????????????# !![##????????????????????? | | ?????????????# #R@]##????????????????????? | | ????????????### ##!! #????????????????????? | | ????????"" ##" # #????????????????????? | | ????????" """" ## #????????????????????? | | ???????""" """ ## #???????????????????? | | ???????"" """"""### #???????????????????? | | ???????""" "" ###? #???????????????????? | | ?????????#####???? #???????????????????? | | ?????????????????? #???????????????????? | | ??????????????????## #???????????????????? | | ???????????????????? ???????????????????? | | ???????????????????? #???????????????????? | | ???????????????????? #???????????????????? | | ????????????????????% #???????????????????? | | ????????????????????? ???????????????????? | | ??????????????????????#???????????????????? | | ??????????????????????????????????????????? | | ??????????????????????????????????????????? | | ??????????????????????????????????????????? | | ??????????????????????????????????????????? | | ??????????????????????????????????????????? | | ??????????????????????????????????????????? | | ??????????????????????????????????????????? | | ??????????????????????????????????????????? | | ??????????????????????????????????????????? | +----------------------------------------------------+ Best States ------------- Heat Dissipation 25 Energy Generation 15 Energy Capacity 250 Matter Stores 300 Matter Capacity 300 Sight Range 16 Terrain Scan Density 10 Evasion (%) 55 Recoil Reduction 2 Item Schematics ----------------- None Robot Schematics ------------------ None Fabricated ------------ Nothing Repaired ---------- Nothing Studied --------- None Alien Tech Used ----------------- None Achievements -------------- None Challenges ------------ None Game ------ Seed HugeGravmagProcessor Manual? 0 Play Time 00:18:37 Cumulative 17.9 hours Start 2025.12.15 @ 15:27:12 End 2025.12.27 @ 14:24:31 Sessions 2 Manual Loads 0 Difficulty Rogue Special Mode None Game No. 27 Rogue 27 Adventurer 0 Explorer 0 Win Type - Total 0 Types 0/0/0/0/0/0/0/0/0/0 Lore% 8 Gallery% 21 Achievement% 18 Wizard Run 0 Options --------- Layout 1 ASCII 0 Keyboard 0 Movement Arrows Keybinds 0 Fullscreen 2 Font 32/SmallcapsGlow Map View 50x35 Zoom Use 0% Tactical HUD 1 Map Filters NONE Filters NONE Steam 1 RUN: 08d13b74-20c5-48aa-8bbf-f48cc3afceaf